[Event "Titled Tuesday Blitz October 11 Early 2022"]
[White "Ozer, Omer Faruk"]
[Black "Drozdowski, Kacper"]
[WhiteFideId "6354564"]
[BlackFideId "1136720"]
[WhiteElo "2260"]
[BlackElo "2485"]
[Result "0-1"]
[Round "02"]
[TimeControl "180+1"]
[Date "2022.10.11"]
[WhiteClock "0:00:04"]
[BlackClock "0:00:13"]

1. e4 {[%clk 0:03:00]}  c5 {[%clk 0:02:59]} 2. Nf3 {[%clk 0:02:59]}  e6 {[%clk 0:02:59]} 3. d4 {[%clk 0:02:58]}  cxd4 {[%clk 0:03:00]} 4. Nxd4 {[%clk 0:02:58]}  a6 {[%clk 0:03:00]} 5. Bd3 {[%clk 0:02:56]}  Nf6 {[%clk 0:02:59]} 6. O-O {[%clk 0:02:55]}  d6 {[%clk 0:03:00]} 7. c4 {[%clk 0:02:50]}  Nbd7 {[%clk 0:03:00]} 8. b3 {[%clk 0:02:42]}  Nc5 {[%clk 0:02:57]} 9. Re1 {[%clk 0:02:38]}  Nxd3 {[%clk 0:02:55]} 10. Qxd3 {[%clk 0:02:38]}  Be7 {[%clk 0:02:55]} 11. Bb2 {[%clk 0:02:37]}  O-O {[%clk 0:02:54]} 12. Nc3 {[%clk 0:02:38]}  Qc7 {[%clk 0:02:53]} 13. Rac1 {[%clk 0:02:37]}  b6 {[%clk 0:02:54]} 14. Re3 {[%clk 0:02:37]}  Ng4 {[%clk 0:02:43]} 15. Rg3 {[%clk 0:02:34]}  Ne5 {[%clk 0:02:43]} 16. Qd2 {[%clk 0:02:31]}  Bf6 {[%clk 0:02:41]} 17. f4 {[%clk 0:02:28]}  Ng6 {[%clk 0:02:40]} 18. f5 {[%clk 0:02:16]}  Ne5 {[%clk 0:02:28]} 19. Nce2 {[%clk 0:02:07]}  exf5 {[%clk 0:02:13]} 20. exf5 {[%clk 0:01:49]}  Bb7 {[%clk 0:02:12]} 21. Nf4 {[%clk 0:01:48]}  Qe7 {[%clk 0:02:01]} 22. Nh5 {[%clk 0:01:15]}  Kh8 {[%clk 0:02:00]} 23. Ne2 {[%clk 0:01:04]}  Rg8 {[%clk 0:01:49]} 24. Nef4 {[%clk 0:01:03]}  Bh4 {[%clk 0:01:46]} 25. Rh3 {[%clk 0:01:01]}  Bg5 {[%clk 0:01:44]} 26. Qf2 {[%clk 0:00:37]}  Rae8 {[%clk 0:01:33]} 27. Rd1 {[%clk 0:00:35]}  Ng4 {[%clk 0:01:25]} 28. Qg3 {[%clk 0:00:27]}  Qe3+ {[%clk 0:01:24]} 29. Qxe3 {[%clk 0:00:27]}  Nxe3 {[%clk 0:01:25]} 30. Rxd6 {[%clk 0:00:24]}  Nxf5 {[%clk 0:01:22]} 31. Rxb6 {[%clk 0:00:24]}  Re7 {[%clk 0:00:49]} 32. Rf3 {[%clk 0:00:16]}  Bxf3 {[%clk 0:00:47]} 33. gxf3 {[%clk 0:00:17]}  h6 {[%clk 0:00:39]} 34. Nd5 {[%clk 0:00:16]}  Re2 {[%clk 0:00:36]} 35. Bc3 {[%clk 0:00:13]}  Rxa2 {[%clk 0:00:34]} 36. f4 {[%clk 0:00:13]}  Bh4 {[%clk 0:00:30]} 37. Ng3 {[%clk 0:00:12]}  Bxg3 {[%clk 0:00:28]} 38. hxg3 {[%clk 0:00:12]}  Kh7 {[%clk 0:00:27]} 39. g4 {[%clk 0:00:12]}  Nh4 {[%clk 0:00:26]} 40. g5 {[%clk 0:00:10]}  hxg5 {[%clk 0:00:23]} 41. fxg5 {[%clk 0:00:11]}  Nf3+ {[%clk 0:00:24]} 42. Kf1 {[%clk 0:00:11]}  Nxg5 {[%clk 0:00:21]} 43. c5 {[%clk 0:00:12]}  Rd8 {[%clk 0:00:20]} 44. Rd6 {[%clk 0:00:08]}  Rxd6 {[%clk 0:00:20]} 45. cxd6 {[%clk 0:00:08]}  Ne6 {[%clk 0:00:19]} 46. d7 {[%clk 0:00:08]}  Rc2 {[%clk 0:00:19]} 47. Ke1 {[%clk 0:00:08]}  f6 {[%clk 0:00:18]} 48. Kd1 {[%clk 0:00:07]}  Rh2 {[%clk 0:00:17]} 49. Bd2 {[%clk 0:00:04]}  Rh5 {[%clk 0:00:17]} 50. Nf4 {[%clk 0:00:04]}  Rh1+ {[%clk 0:00:16]} 51. Kc2 {[%clk 0:00:04]}  Nd8 {[%clk 0:00:17]} 52. Kd3 {[%clk 0:00:04]}  Rb1 {[%clk 0:00:15]} 53. Bc3 {[%clk 0:00:03]}  Rd1+ {[%clk 0:00:13]} 54. Bd2 {[%clk 0:00:04]}  g5 {[%clk 0:00:13]} 55. Nd5 {[%clk 0:00:03]}  Kg6 {[%clk 0:00:14]} 56. Ke2 {[%clk 0:00:03]}  Rh1 {[%clk 0:00:14]} 57. Bc3 {[%clk 0:00:03]}  Rh7 {[%clk 0:00:13]} 58. Bxf6 {[%clk 0:00:03]}  Rxd7 {[%clk 0:00:13]} 59. Bxd8 {[%clk 0:00:04]}  Rxd5 {[%clk 0:00:13]} 0-1


[Site "https://www.chess.com"]

[Event "Titled Tuesday Blitz October 11 Early 2022"]
[White "Polanco Nunez, Yoel Estarling"]
[Black "Obrien, Matthew"]
[WhiteFideId "6401783"]
[BlackFideId "2059150"]
[WhiteElo "2132"]
[BlackElo "2539"]
[Result "0-1"]
[Round "02"]
[TimeControl "180+1"]
[Date "2022.10.12"]
[WhiteClock "0:01:10"]
[BlackClock "0:00:09"]

1. Nf3 {[%clk 0:03:00]}  Nf6 {[%clk 0:02:59]} 2. g3 {[%clk 0:03:01]}  g6 {[%clk 0:02:59]} 3. Bg2 {[%clk 0:03:02]}  Bg7 {[%clk 0:03:00]} 4. d4 {[%clk 0:03:02]}  O-O {[%clk 0:03:00]} 5. O-O {[%clk 0:03:03]}  d6 {[%clk 0:03:01]} 6. Nc3 {[%clk 0:03:03]}  a6 {[%clk 0:02:59]} 7. a4 {[%clk 0:03:02]}  Nc6 {[%clk 0:02:59]} 8. e4 {[%clk 0:03:02]}  Re8 {[%clk 0:03:00]} 9. h3 {[%clk 0:03:02]}  Bd7 {[%clk 0:03:00]} 10. Re1 {[%clk 0:02:59]}  e5 {[%clk 0:02:59]} 11. dxe5 {[%clk 0:02:59]}  Nxe5 {[%clk 0:02:55]} 12. Nxe5 {[%clk 0:02:59]}  dxe5 {[%clk 0:02:56]} 13. Be3 {[%clk 0:02:59]}  Bc6 {[%clk 0:02:56]} 14. Qe2 {[%clk 0:02:57]}  Qe7 {[%clk 0:02:55]} 15. Qc4 {[%clk 0:02:51]}  Rad8 {[%clk 0:02:47]} 16. Bc5 {[%clk 0:02:46]}  Qe6 {[%clk 0:02:47]} 17. Qxe6 {[%clk 0:02:46]}  fxe6 {[%clk 0:02:44]} 18. a5 {[%clk 0:02:44]}  Rd2 {[%clk 0:02:40]} 19. Rac1 {[%clk 0:02:41]}  Bh6 {[%clk 0:02:39]} 20. Be3 {[%clk 0:02:34]}  Bxe3 {[%clk 0:02:38]} 21. Rxe3 {[%clk 0:02:34]}  Red8 {[%clk 0:02:35]} 22. Bf1 {[%clk 0:02:32]}  Ne8 {[%clk 0:02:23]} 23. Bd3 {[%clk 0:02:29]}  Nf6 {[%clk 0:01:49]} 24. Nb1 {[%clk 0:02:25]}  R8xd3 {[%clk 0:01:39]} 25. Rxd3 {[%clk 0:02:12]}  Re2 {[%clk 0:01:24]} 26. f3 {[%clk 0:02:07]}  Nh5 {[%clk 0:01:24]} 27. Rd2 {[%clk 0:01:54]}  Nxg3 {[%clk 0:01:23]} 28. Rcd1 {[%clk 0:01:45]}  Kg7 {[%clk 0:01:00]} 29. Rxe2 {[%clk 0:01:44]}  Nxe2+ {[%clk 0:01:01]} 30. Kf2 {[%clk 0:01:45]}  Nf4 {[%clk 0:00:53]} 31. Kg3 {[%clk 0:01:45]}  Ne2+ {[%clk 0:00:52]} 32. Kh2 {[%clk 0:01:45]}  Nd4 {[%clk 0:00:51]} 33. c3 {[%clk 0:01:37]}  Nxf3+ {[%clk 0:00:51]} 34. Kg3 {[%clk 0:01:37]}  Bxe4 {[%clk 0:00:51]} 35. Nd2 {[%clk 0:01:37]}  Nxd2 {[%clk 0:00:36]} 36. Rxd2 {[%clk 0:01:37]}  Bc6 {[%clk 0:00:36]} 37. Rd8 {[%clk 0:01:36]}  e4 {[%clk 0:00:32]} 38. Kf4 {[%clk 0:01:36]}  Kf6 {[%clk 0:00:31]} 39. Rf8+ {[%clk 0:01:36]}  Ke7 {[%clk 0:00:32]} 40. Rh8 {[%clk 0:01:37]}  h5 {[%clk 0:00:32]} 41. Rh7+ {[%clk 0:01:37]}  Kf6 {[%clk 0:00:32]} 42. h4 {[%clk 0:01:35]}  e5+ {[%clk 0:00:32]} 43. Ke3 {[%clk 0:01:36]}  Kf5 {[%clk 0:00:30]} 44. Rxc7 {[%clk 0:01:33]}  g5 {[%clk 0:00:26]} 45. hxg5 {[%clk 0:01:32]}  Kxg5 {[%clk 0:00:25]} 46. b4 {[%clk 0:01:29]}  h4 {[%clk 0:00:25]} 47. Rg7+ {[%clk 0:01:23]}  Kf5 {[%clk 0:00:22]} 48. c4 {[%clk 0:01:21]}  h3 {[%clk 0:00:20]} 49. Rg8 {[%clk 0:01:20]}  Bd7 {[%clk 0:00:16]} 50. Rg7 {[%clk 0:01:19]}  Bc6 {[%clk 0:00:14]} 51. b5 {[%clk 0:01:18]}  axb5 {[%clk 0:00:14]} 52. cxb5 {[%clk 0:01:19]}  Bxb5 {[%clk 0:00:15]} 53. Rxb7 {[%clk 0:01:19]}  Bf1 {[%clk 0:00:13]} 54. Rh7 {[%clk 0:01:19]}  Kg4 {[%clk 0:00:12]} 55. Kxe4 {[%clk 0:01:19]}  Kg3 {[%clk 0:00:11]} 56. Kxe5 {[%clk 0:01:19]}  h2 {[%clk 0:00:11]} 57. Kd6 {[%clk 0:01:17]}  Bg2 {[%clk 0:00:10]} 58. Rg7+ {[%clk 0:01:15]}  Kf2 {[%clk 0:00:10]} 59. Rf7+ {[%clk 0:01:14]}  Kg3 {[%clk 0:00:11]} 60. Rh7 {[%clk 0:01:15]}  Bh3 {[%clk 0:00:11]} 61. Rg7+ {[%clk 0:01:15]}  Bg4 {[%clk 0:00:11]} 62. Rh7 {[%clk 0:01:15]}  Bh3 {[%clk 0:00:11]} 63. Rg7+ {[%clk 0:01:15]}  Kf2 {[%clk 0:00:10]} 64. Rf7+ {[%clk 0:01:15]}  Kg1 {[%clk 0:00:10]} 65. Re7 {[%clk 0:01:14]}  h1=Q {[%clk 0:00:10]} 66. Re1+ {[%clk 0:01:14]}  Bf1 {[%clk 0:00:10]} 67. Kc5 {[%clk 0:01:14]}  Qh5+ {[%clk 0:00:09]} 68. Kd4 {[%clk 0:01:11]}  Qxa5 {[%clk 0:00:09]} 69. Re5 {[%clk 0:01:10]}  Qa1+ {[%clk 0:00:09]} 70. Kd5 {[%clk 0:01:10]}  Bg2+ {[%clk 0:00:09]} 71. Kd6 {[%clk 0:01:10]}  Qd4+ {[%clk 0:00:08]} 72. Ke6 {[%clk 0:01:10]}  Bh3+ {[%clk 0:00:09]} 73. Kf6 {[%clk 0:01:10]}  Qf4+ {[%clk 0:00:09]} 0-1


[Site "https://www.chess.com"]

[Event "Titled Tuesday Blitz October 11 Early 2022"]
[White "Poltorak, Sebastian"]
[Black "Kaganskiy, Gleb"]
[WhiteFideId "1199498"]
[BlackFideId "4132025"]
[WhiteElo "2232"]
[BlackElo "2165"]
[Result "1-0"]
[Round "02"]
[TimeControl "180+1"]
[Date "2022.10.12"]
[WhiteClock "0:02:18"]
[BlackClock "0:01:30"]

1. d4 {[%clk 0:03:00]}  d5 {[%clk 0:02:59]} 2. c4 {[%clk 0:03:01]}  e6 {[%clk 0:02:58]} 3. Nc3 {[%clk 0:03:01]}  c5 {[%clk 0:02:59]} 4. cxd5 {[%clk 0:02:59]}  exd5 {[%clk 0:03:00]} 5. Nf3 {[%clk 0:02:59]}  Nc6 {[%clk 0:02:59]} 6. g3 {[%clk 0:02:57]}  Nf6 {[%clk 0:02:59]} 7. Bg2 {[%clk 0:02:56]}  Be7 {[%clk 0:03:00]} 8. O-O {[%clk 0:02:56]}  O-O {[%clk 0:03:01]} 9. Bf4 {[%clk 0:02:51]}  c4 {[%clk 0:02:59]} 10. Ne5 {[%clk 0:02:49]}  Be6 {[%clk 0:02:58]} 11. Nxc6 {[%clk 0:02:46]}  bxc6 {[%clk 0:02:58]} 12. b3 {[%clk 0:02:46]}  Qa5 {[%clk 0:02:59]} 13. Qc2 {[%clk 0:02:42]}  Bb4 {[%clk 0:02:35]} 14. Bd2 {[%clk 0:02:37]}  Rfe8 {[%clk 0:02:13]} 15. bxc4 {[%clk 0:02:32]}  dxc4 {[%clk 0:01:50]} 16. Bxc6 {[%clk 0:02:31]}  Rac8 {[%clk 0:01:50]} 17. Bxe8 {[%clk 0:02:31]}  Rxe8 {[%clk 0:01:51]} 18. a3 {[%clk 0:02:30]}  Bxc3 {[%clk 0:01:47]} 19. Bxc3 {[%clk 0:02:28]}  Qd5 {[%clk 0:01:47]} 20. f3 {[%clk 0:02:26]}  Bf5 {[%clk 0:01:42]} 21. e4 {[%clk 0:02:26]}  Nxe4 {[%clk 0:01:41]} 22. fxe4 {[%clk 0:02:27]}  Bxe4 {[%clk 0:01:41]} 23. Qf2 {[%clk 0:02:26]}  Bg6 {[%clk 0:01:38]} 24. Rfe1 {[%clk 0:02:24]}  Rd8 {[%clk 0:01:37]} 25. Re5 {[%clk 0:02:22]}  Qd7 {[%clk 0:01:36]} 26. Rae1 {[%clk 0:02:22]}  h6 {[%clk 0:01:35]} 27. d5 {[%clk 0:02:21]}  Qh3 {[%clk 0:01:34]} 28. Qd4 {[%clk 0:02:19]}  Bd3 {[%clk 0:01:30]} 29. Re8+ {[%clk 0:02:18]}  Rxe8 {[%clk 0:01:30]} 30. Qxg7# {[%clk 0:02:18]} 1-0


[Site "https://www.chess.com"]

[Event "Titled Tuesday Blitz October 11 Early 2022"]
[White "Pourkashiyan, Atousa"]
[Black "Goryachkina, Aleksandra"]
[WhiteFideId "12502014"]
[BlackFideId "4147103"]
[WhiteElo "2247"]
[BlackElo "2484"]
[Result "0-1"]
[Round "02"]
[TimeControl "180+1"]
[Date "2022.10.12"]
[WhiteClock "0:00:03"]
[BlackClock "0:00:26"]

1. e4 {[%clk 0:02:11]}  c6 {[%clk 0:02:58]} 2. d4 {[%clk 0:02:11]}  d5 {[%clk 0:02:58]} 3. Nc3 {[%clk 0:02:10]}  dxe4 {[%clk 0:02:58]} 4. Nxe4 {[%clk 0:02:06]}  Nf6 {[%clk 0:02:59]} 5. Nxf6+ {[%clk 0:02:06]}  exf6 {[%clk 0:02:59]} 6. c3 {[%clk 0:02:06]}  Bf5 {[%clk 0:02:58]} 7. Bd3 {[%clk 0:02:03]}  Bxd3 {[%clk 0:02:58]} 8. Qxd3 {[%clk 0:02:03]}  Bd6 {[%clk 0:02:58]} 9. Ne2 {[%clk 0:02:01]}  O-O {[%clk 0:02:57]} 10. O-O {[%clk 0:02:00]}  Qc7 {[%clk 0:02:56]} 11. h3 {[%clk 0:01:57]}  Nd7 {[%clk 0:02:55]} 12. Qf3 {[%clk 0:01:49]}  Rfe8 {[%clk 0:02:45]} 13. Bf4 {[%clk 0:01:48]}  Rad8 {[%clk 0:02:44]} 14. Bxd6 {[%clk 0:01:44]}  Qxd6 {[%clk 0:02:44]} 15. Ng3 {[%clk 0:01:42]}  g6 {[%clk 0:02:34]} 16. Rfe1 {[%clk 0:01:36]}  f5 {[%clk 0:02:31]} 17. h4 {[%clk 0:01:34]}  h5 {[%clk 0:02:24]} 18. Re2 {[%clk 0:01:28]}  Rxe2 {[%clk 0:02:16]} 19. Qxe2 {[%clk 0:01:22]}  Nf6 {[%clk 0:02:16]} 20. Re1 {[%clk 0:01:20]}  Re8 {[%clk 0:02:14]} 21. Qd2 {[%clk 0:01:16]}  Rxe1+ {[%clk 0:02:11]} 22. Qxe1 {[%clk 0:01:16]}  Qf4 {[%clk 0:02:07]} 23. Qe3 {[%clk 0:01:06]}  Qxh4 {[%clk 0:01:41]} 24. Qe7 {[%clk 0:01:05]}  Qg5 {[%clk 0:01:22]} 25. Qxb7 {[%clk 0:00:54]}  h4 {[%clk 0:01:01]} 26. Nf1 {[%clk 0:00:51]}  Ne4 {[%clk 0:00:51]} 27. Qb8+ {[%clk 0:00:39]}  Kg7 {[%clk 0:00:44]} 28. Qe5+ {[%clk 0:00:38]}  Kh7 {[%clk 0:00:41]} 29. f3 {[%clk 0:00:27]}  Ng3 {[%clk 0:00:32]} 30. a4 {[%clk 0:00:03]}  Qc1 {[%clk 0:00:26]} 0-1


[Site "https://www.chess.com"]

[Event "Titled Tuesday Blitz October 11 Early 2022"]
[White "Przybylski, Wojciech"]
[Black "Torres Boch, Jose Francisco"]
[WhiteFideId "1117599"]
[BlackFideId "2278383"]
[WhiteElo "2221"]
[BlackElo "2073"]
[Result "0-1"]
[Round "02"]
[TimeControl "180+1"]
[Date "2022.10.12"]
[WhiteClock "0:00:01"]
[BlackClock "0:00:43"]

1. e4 {[%clk 0:03:00]}  e5 {[%clk 0:02:56]} 2. Nf3 {[%clk 0:02:59]}  Nc6 {[%clk 0:02:57]} 3. d4 {[%clk 0:02:58]}  exd4 {[%clk 0:02:56]} 4. Nxd4 {[%clk 0:02:58]}  Nf6 {[%clk 0:02:55]} 5. Nxc6 {[%clk 0:02:58]}  bxc6 {[%clk 0:02:56]} 6. e5 {[%clk 0:02:49]}  Qe7 {[%clk 0:02:47]} 7. Qe2 {[%clk 0:02:49]}  Nd5 {[%clk 0:02:36]} 8. c4 {[%clk 0:02:46]}  Nb6 {[%clk 0:02:36]} 9. Nc3 {[%clk 0:02:44]}  Bb7 {[%clk 0:02:25]} 10. Bf4 {[%clk 0:02:35]}  Qe6 {[%clk 0:02:18]} 11. O-O-O {[%clk 0:02:31]}  a5 {[%clk 0:02:19]} 12. Qe4 {[%clk 0:02:18]}  Ba6 {[%clk 0:02:15]} 13. Nd5 {[%clk 0:01:18]}  cxd5 {[%clk 0:02:05]} 14. cxd5 {[%clk 0:01:18]}  Qg6 {[%clk 0:02:04]} 15. Qf3 {[%clk 0:01:17]}  Bxf1 {[%clk 0:01:59]} 16. Rhxf1 {[%clk 0:01:17]}  Bc5 {[%clk 0:01:46]} 17. h4 {[%clk 0:01:13]}  h5 {[%clk 0:01:40]} 18. Qc3 {[%clk 0:00:48]}  d6 {[%clk 0:01:39]} 19. exd6 {[%clk 0:00:46]}  cxd6 {[%clk 0:01:29]} 20. Rfe1+ {[%clk 0:00:41]}  Kf8 {[%clk 0:01:29]} 21. Qf3 {[%clk 0:00:35]}  Rc8 {[%clk 0:01:26]} 22. Re4 {[%clk 0:00:31]}  Kg8 {[%clk 0:01:10]} 23. Qd3 {[%clk 0:00:19]}  Kh7 {[%clk 0:01:09]} 24. g4 {[%clk 0:00:17]}  Bxf2+ {[%clk 0:00:59]} 25. Kb1 {[%clk 0:00:14]}  Rhe8 {[%clk 0:01:00]} 26. Rxe8 {[%clk 0:00:09]}  Qxd3+ {[%clk 0:01:00]} 27. Rxd3 {[%clk 0:00:10]}  Rxe8 {[%clk 0:01:00]} 28. Bxd6 {[%clk 0:00:09]}  hxg4 {[%clk 0:00:58]} 29. Bc7 {[%clk 0:00:08]}  Rc8 {[%clk 0:00:53]} 30. d6 {[%clk 0:00:06]}  Nd7 {[%clk 0:00:50]} 31. Bxa5 {[%clk 0:00:01]}  g3 {[%clk 0:00:49]} 32. Rd2 {[%clk 0:00:01]}  g2 {[%clk 0:00:49]} 33. a3 {[%clk 0:00:01]}  g1=Q+ {[%clk 0:00:49]} 34. Ka2 {[%clk 0:00:02]}  Be3 {[%clk 0:00:49]} 35. Rd3 {[%clk 0:00:02]}  Bc5 {[%clk 0:00:48]} 36. Bc3 {[%clk 0:00:02]}  Qg6 {[%clk 0:00:46]} 37. Rd2 {[%clk 0:00:01]}  Bxd6 {[%clk 0:00:45]} 38. Re2 {[%clk 0:00:01]}  Rxc3 {[%clk 0:00:43]} 0-1


[Site "https://www.chess.com"]

[Event "Titled Tuesday Blitz October 11 Early 2022"]
[White "Rangel, Daniel"]
[Black "Indjic, Aleksandar"]
[WhiteFideId "2124475"]
[BlackFideId "911925"]
[WhiteElo "2225"]
[BlackElo "2592"]
[Result "0-1"]
[Round "02"]
[TimeControl "180+1"]
[Date "2022.10.12"]
[WhiteClock "0:00:29"]
[BlackClock "0:00:33"]

1. c4 {[%clk 0:03:00]}  e5 {[%clk 0:02:59]} 2. g3 {[%clk 0:03:00]}  h5 {[%clk 0:02:57]} 3. Bg2 {[%clk 0:03:01]}  h4 {[%clk 0:02:56]} 4. Nc3 {[%clk 0:03:02]}  Nc6 {[%clk 0:02:55]} 5. e3 {[%clk 0:03:02]}  Bb4 {[%clk 0:02:53]} 6. Nge2 {[%clk 0:03:02]}  h3 {[%clk 0:02:50]} 7. Be4 {[%clk 0:03:00]}  Nf6 {[%clk 0:02:49]} 8. Bc2 {[%clk 0:03:00]}  d5 {[%clk 0:02:47]} 9. cxd5 {[%clk 0:02:54]}  Nxd5 {[%clk 0:02:46]} 10. O-O {[%clk 0:02:52]}  Be6 {[%clk 0:02:38]} 11. a3 {[%clk 0:02:51]}  Bxc3 {[%clk 0:02:27]} 12. bxc3 {[%clk 0:02:45]}  f5 {[%clk 0:02:22]} 13. d4 {[%clk 0:02:43]}  Nb6 {[%clk 0:02:21]} 14. dxe5 {[%clk 0:02:32]}  Nxe5 {[%clk 0:02:04]} 15. Nd4 {[%clk 0:02:27]}  Qf6 {[%clk 0:01:54]} 16. Nxe6 {[%clk 0:02:19]}  Qxe6 {[%clk 0:01:55]} 17. e4 {[%clk 0:02:12]}  Qc6 {[%clk 0:01:42]} 18. Bf4 {[%clk 0:02:01]}  Nbc4 {[%clk 0:01:32]} 19. Qd5 {[%clk 0:01:31]}  Qxd5 {[%clk 0:01:31]} 20. exd5 {[%clk 0:01:32]}  Nf3+ {[%clk 0:01:29]} 21. Kh1 {[%clk 0:01:32]}  g5 {[%clk 0:01:06]} 22. Bxc7 {[%clk 0:01:28]}  Kd7 {[%clk 0:01:05]} 23. d6 {[%clk 0:01:27]}  Nxd6 {[%clk 0:01:04]} 24. Bxd6 {[%clk 0:01:25]}  Kxd6 {[%clk 0:01:05]} 25. Bxf5 {[%clk 0:01:25]}  Raf8 {[%clk 0:01:00]} 26. Be4 {[%clk 0:01:13]}  Kc7 {[%clk 0:00:57]} 27. Bxf3 {[%clk 0:00:59]}  Rxf3 {[%clk 0:00:55]} 28. Rac1 {[%clk 0:00:59]}  Rd8 {[%clk 0:00:54]} 29. Rc2 {[%clk 0:00:58]}  Rdd3 {[%clk 0:00:51]} 30. Rfc1 {[%clk 0:00:55]}  Kc6 {[%clk 0:00:51]} 31. Kg1 {[%clk 0:00:56]}  Kc5 {[%clk 0:00:50]} 32. Kf1 {[%clk 0:00:52]}  b6 {[%clk 0:00:50]} 33. Ke2 {[%clk 0:00:52]}  g4 {[%clk 0:00:49]} 34. a4 {[%clk 0:00:42]}  Rd7 {[%clk 0:00:47]} 35. Rd2 {[%clk 0:00:39]}  Rxf2+ {[%clk 0:00:43]} 36. Kxf2 {[%clk 0:00:35]}  Rxd2+ {[%clk 0:00:43]} 37. Kg1 {[%clk 0:00:36]}  Kc4 {[%clk 0:00:40]} 38. Rf1 {[%clk 0:00:34]}  Rg2+ {[%clk 0:00:38]} 39. Kh1 {[%clk 0:00:34]}  Ra2 {[%clk 0:00:37]} 40. Rc1 {[%clk 0:00:31]}  Rxa4 {[%clk 0:00:37]} 41. Rf1 {[%clk 0:00:31]}  Kxc3 {[%clk 0:00:35]} 42. Rg1 {[%clk 0:00:30]}  Kb2 {[%clk 0:00:34]} 43. Rd1 {[%clk 0:00:30]}  Ra1 {[%clk 0:00:33]} 44. Rxa1 {[%clk 0:00:29]}  Kxa1 {[%clk 0:00:33]} 0-1


[Site "https://www.chess.com"]

[Event "Titled Tuesday Blitz October 11 Early 2022"]
[White "Rosen, Eric"]
[Black "Azarov, Sergei"]
[WhiteFideId "2032562"]
[BlackFideId "13501470"]
[WhiteElo "2362"]
[BlackElo "2494"]
[Result "1/2-1/2"]
[Round "02"]
[TimeControl "180+1"]
[Date "2022.10.12"]
[WhiteClock "0:00:07"]
[BlackClock "0:00:21"]

1. d4 {[%clk 0:02:53]}  Nf6 {[%clk 0:02:59]} 2. Bf4 {[%clk 0:02:52]}  e6 {[%clk 0:02:56]} 3. e3 {[%clk 0:02:52]}  d5 {[%clk 0:02:55]} 4. Nf3 {[%clk 0:02:52]}  Bd6 {[%clk 0:02:52]} 5. Ne5 {[%clk 0:02:52]}  O-O {[%clk 0:02:48]} 6. Nd2 {[%clk 0:02:52]}  b6 {[%clk 0:02:46]} 7. h4 {[%clk 0:02:51]}  Ba6 {[%clk 0:02:43]} 8. Bxa6 {[%clk 0:02:49]}  Nxa6 {[%clk 0:02:42]} 9. h5 {[%clk 0:02:49]}  c5 {[%clk 0:02:25]} 10. c3 {[%clk 0:02:43]}  Nb8 {[%clk 0:02:05]} 11. Qf3 {[%clk 0:02:36]}  Bxe5 {[%clk 0:01:55]} 12. Bxe5 {[%clk 0:02:27]}  Nbd7 {[%clk 0:01:54]} 13. h6 {[%clk 0:02:16]}  g6 {[%clk 0:01:54]} 14. Bf4 {[%clk 0:02:04]}  Qe7 {[%clk 0:01:41]} 15. O-O-O {[%clk 0:01:49]}  e5 {[%clk 0:01:37]} 16. Bg5 {[%clk 0:01:47]}  Qe6 {[%clk 0:01:35]} 17. Rhe1 {[%clk 0:01:23]}  Rfe8 {[%clk 0:01:27]} 18. dxe5 {[%clk 0:01:12]}  Qxe5 {[%clk 0:01:26]} 19. Bf4 {[%clk 0:01:11]}  Qe6 {[%clk 0:01:15]} 20. Kb1 {[%clk 0:01:09]}  Ne5 {[%clk 0:01:11]} 21. Bxe5 {[%clk 0:01:00]}  Qxe5 {[%clk 0:01:12]} 22. Qe2 {[%clk 0:00:55]}  Qf5+ {[%clk 0:01:02]} 23. Ka1 {[%clk 0:00:54]}  Ng4 {[%clk 0:01:00]} 24. e4 {[%clk 0:00:26]}  dxe4 {[%clk 0:00:51]} 25. Nxe4 {[%clk 0:00:26]}  Rxe4 {[%clk 0:00:49]} 26. Qxe4 {[%clk 0:00:23]}  Qxe4 {[%clk 0:00:49]} 27. Rxe4 {[%clk 0:00:24]}  Nxf2 {[%clk 0:00:49]} 28. Ree1 {[%clk 0:00:20]}  Nxd1 {[%clk 0:00:44]} 29. Rxd1 {[%clk 0:00:21]}  Kf8 {[%clk 0:00:39]} 30. Rd7 {[%clk 0:00:19]}  Re8 {[%clk 0:00:39]} 31. a4 {[%clk 0:00:19]}  a5 {[%clk 0:00:35]} 32. Rb7 {[%clk 0:00:15]}  Re6 {[%clk 0:00:35]} 33. Ka2 {[%clk 0:00:16]}  g5 {[%clk 0:00:34]} 34. Rb8+ {[%clk 0:00:08]}  Ke7 {[%clk 0:00:34]} 35. Rg8 {[%clk 0:00:09]}  Rxh6 {[%clk 0:00:31]} 36. Rxg5 {[%clk 0:00:08]}  Rg6 {[%clk 0:00:31]} 37. Rh5 {[%clk 0:00:09]}  h6 {[%clk 0:00:28]} 38. Kb3 {[%clk 0:00:09]}  Kd6 {[%clk 0:00:24]} 39. Kc4 {[%clk 0:00:06]}  Kc6 {[%clk 0:00:24]} 40. g3 {[%clk 0:00:03]}  Rg4+ {[%clk 0:00:21]} 41. Kb3 {[%clk 0:00:03]}  Rg6 {[%clk 0:00:21]} 42. Kc4 {[%clk 0:00:04]}  Rg4+ {[%clk 0:00:21]} 43. Kb3 {[%clk 0:00:04]}  c4+ {[%clk 0:00:22]} 44. Ka3 {[%clk 0:00:03]}  Rg6 {[%clk 0:00:21]} 45. Rh4 {[%clk 0:00:03]}  Kc5 {[%clk 0:00:20]} 46. Rh5+ {[%clk 0:00:03]}  Kc6 {[%clk 0:00:20]} 47. Rh4 {[%clk 0:00:04]}  Rxg3 {[%clk 0:00:21]} 48. Rxh6+ {[%clk 0:00:03]}  Kb7 {[%clk 0:00:20]} 49. Rf6 {[%clk 0:00:03]}  Rg7 {[%clk 0:00:19]} 50. Rf4 {[%clk 0:00:04]}  Rh7 {[%clk 0:00:17]} 51. Rxc4 {[%clk 0:00:04]}  f5 {[%clk 0:00:18]} 52. Rf4 {[%clk 0:00:04]}  Rf7 {[%clk 0:00:18]} 53. Kb3 {[%clk 0:00:05]}  Kc6 {[%clk 0:00:19]} 54. Kc4 {[%clk 0:00:05]}  Kd6 {[%clk 0:00:19]} 55. Kd4 {[%clk 0:00:06]}  Rf8 {[%clk 0:00:20]} 56. b4 {[%clk 0:00:06]}  axb4 {[%clk 0:00:19]} 57. cxb4 {[%clk 0:00:07]}  Ke6 {[%clk 0:00:19]} 58. Kc4 {[%clk 0:00:06]}  Ke5 {[%clk 0:00:18]} 59. Rf1 {[%clk 0:00:06]}  f4 {[%clk 0:00:18]} 60. Kb5 {[%clk 0:00:07]}  Rf6 {[%clk 0:00:19]} 61. a5 {[%clk 0:00:04]}  bxa5 {[%clk 0:00:19]} 62. bxa5 {[%clk 0:00:05]}  f3 {[%clk 0:00:19]} 63. a6 {[%clk 0:00:05]}  Kf4 {[%clk 0:00:19]} 64. a7 {[%clk 0:00:05]}  Rf8 {[%clk 0:00:20]} 65. Ka6 {[%clk 0:00:05]}  Ra8 {[%clk 0:00:18]} 66. Kb7 {[%clk 0:00:04]}  Rxa7+ {[%clk 0:00:19]} 67. Kxa7 {[%clk 0:00:04]}  Kg3 {[%clk 0:00:19]} 68. Kb6 {[%clk 0:00:05]}  f2 {[%clk 0:00:19]} 69. Rd1 {[%clk 0:00:05]}  Kg2 {[%clk 0:00:20]} 70. Kc5 {[%clk 0:00:06]}  f1=Q {[%clk 0:00:20]} 71. Rxf1 {[%clk 0:00:07]}  Kxf1 {[%clk 0:00:21]} 1/2-1/2


[Site "https://www.chess.com"]